Cogmind - Beta 11.1 @@@ ROGUE MODE // 2022.05.02 @ 21:33:23 Player: DaddyWalrus Result: Destroyed by G-47 Trooper with Particle Gun Performance ------------- Evolutions (0) 0 Regions Visited (2) 400 Robots Destroyed (26) 130 Value Destroyed (567) 567 Prototype IDs (2) 40 Alien Tech Used (0) 0 Bonus (0) 0 TOTAL SCORE: 1137 Bonus ------- None Cogmind --------- Core Integrity 0/250 Matter 261/300 Energy 59/100 System Corruption 0% Temperature Cool (9) Movement Rolling (200) Ox8 Location -10/Mines Parts ------- > --- POWER (1) -------- (None) > --- PROPULSION (2) --- Wheel > --- UTILITY (2) ------ Improved Heat Sink Huge Storage Unit > --- WEAPON (2) ------- Medium Laser > --- INVENTORY (25) --- Light Ion Engine Light Ion Engine Light Treads Light Treads Wheel Wheel Wheel Wheel Compact Wheel Compact Wheel Compact Wheel Large Storage Unit Large Matter Pod (150) Structural Scanner Transport Network Coupler Utility Shielding Utility Shielding Hacking Suite Small Laser Particle Gun Light Assault Rifle Datajack Peak State ------------ > --- POWER ------------ Light Nuclear Core > --- PROPULSION ------- Light Treads Light Treads > --- UTILITY ---------- Huge Storage Unit Structural Scanner > --- WEAPON ----------- Assault Rifle Assault Rifle > --- INVENTORY -------- Light Treads Light Treads Wheel Wheel Wheel Wheel Wheel Improved Heat Sink Large Storage Unit Large Matter Pod Transport Network Coupler Utility Shielding Hacking Suite Medium Laser Small Laser Particle Gun Light Assault Rifle Datajack [Rating: 11] Favorites ----------- Power Ion Engine Engine Ion Engine Power Core Light Nuclear Core Propulsion Wheel Treads Light Treads Wheel Wheel Utility Structural Scanner Device Structural Scanner Storage Huge Storage Unit Processor Signal Interpreter Weapon Assault Rifle Energy Gun Medium Laser Ballistic Gun Assault Rifle Build | -11 -10 -10 ------- Run | Scr Mat Min Slots Evolved . | . . . Power . | . . . Propulsion . | . . . Utility . | . . . Weapon . | . . . Parts Attached 41 | 6 5 30 Power 3 | 1 . 2 Engine 2 | 1 . 1 Core 1 | . . 1 Reactor . | . . . Propulsion 27 | 2 1 24 Treads 14 | 1 . 13 Leg . | . . . Wheel 13 | 1 1 11 Hover . | . . . Flight . | . . . Utility 6 | 1 4 1 Device 2 | . 1 1 Storage 3 | 1 2 . Processor 1 | . 1 . Hackware . | . . . Protection . | . . . Artifact . | . . . Weapon 5 | 2 . 3 Energy Gun 1 | . . 1 Energy Cannon . | . . . Ballistic Gun 4 | 2 . 2 Ballistic Cannon . | . . . Launcher . | . . . Special Weapon . | . . . Impact Weapon . | . . . Slashing Weapon . | . . . Piercing Weapon . | . . . Special Melee Weapon . | . . . Unidentified Prototypes . | . . . Parts Lost 11 | . . 11 Power 2 | . . 2 Propulsion 5 | . . 5 Utility . | . . . Weapon 4 | . . 4 Highest Loss Streak 5 | . . 5 To Critical Strikes . | . . . Average Slot Usage (%) 98 | . 98 98 Engine 13 | . 14 11 Treads 6 | . 7 5 Wheel 21 | . 20 22 Device 12 | . 10 14 Storage 14 | . 14 14 Processor 1 | . 2 . Energy Gun 3 | . . 8 Ballistic Gun 24 | . 28 18 Naked Turns . | . . . Heaviest Build 90 | 14 90 90 Greatest Support 20 | 20 20 20 Greatest Overweight (x) 8 | 4 8 8 Average Overweight (x) 3 | 1 2 4 Largest Inventory Capacity 25 | 8 25 25 Average Capacity 19 | 7 18 25 Most Carried 24 | 8 20 24 Average Carried 14 | 4 11 20 Final Capacity 25 | 8 25 25 Final Carried 22 | 8 20 22 Class Distribution -------------------- 100% | Mutant Dominant Class ---------------- Mutant | -10/Materials Mutant | -10/Mines Resources | -11 -10 -10 ----------- Run | Scr Mat Min Matter Collected 1195 | 332 500 363 Remotely . | . . . Salvage Created 917 | 129 614 174 Parts 60 | 7 48 5 Haulers Intercepted 1 | . 1 . Recyclers Shooed . | . . . Parts Field Recycled . | . . . Retrieved Matter . | . . . Parts Self-Destructed . | . . . Prevented . | . . . Kills | -11 -10 -10 ------- Run | Scr Mat Min Combat Hostiles Destroyed 19 | . 11 8 Guns 19 | . 11 8 Classes Destroyed 11 | 2 7 2 Worker 1 | . 1 . Builder 1 | . 1 . Tunneler 3 | 3 . . Hauler 1 | . 1 . Recycler 2 | 1 1 . Operator 1 | . 1 . Watcher 3 | . 3 . Swarmer 3 | . 3 . Grunt 10 | . 8 2 Demolisher 1 | . . 1 Assembled 5 | . . 5 Best Kill Streak 6 | 3 6 2 Combat Bots Only 3 | . 3 2 Max Kills in Single Turn 2 | 2 1 1 Gunslinging . | . . . Exploded . | . . . Melee . | . . . Uniques/NPCs Destroyed . | . . . Combat | -11 -10 -10 -------- Run | Scr Mat Min Damage Taken 1480 | . 280 1200 Core 253 | . 34 219 Absorbed by Shields . | . . . Core Remaining (%) 100 | 100 . . Volleys Fired 97 | 12 50 35 Largest 2 | 2 2 2 Hottest 70 | 40 40 70 Shots Fired 194 | 24 100 70 Gun 194 | 24 100 70 Cannon . | . . . Launcher . | . . . Special . | . . . Kinetic 184 | 24 100 60 Thermal 10 | . . 10 Explosive . | . . . Electromagnetic . | . . . Robot Hit Streak 11 | 8 11 7 Robot Miss Streak 4 | 1 4 2 Penetration Max . | . . . Secondary Targets 1 | . 1 . Max Gunslinging Chain 1 | . 1 . Shots Hit Robots 116 | 17 57 42 Core Hits 52 | 5 30 17 Critical Kills 1 | . 1 . Critical Parts Destroyed . | . . . Critical Strikes 2 | . 1 1 Burn 1 | . . 1 Destroy 1 | . 1 . Melee Attacks . | . . . Impact . | . . . Slashing . | . . . Piercing . | . . . Sneak Attacks . | . . . Combat Hostiles . | . . . Follow-up Attacks . | . . . Damage Inflicted 1546 | 231 777 538 Guns 1546 | 231 777 538 Cannons . | . . . Explosions . | . . . Melee . | . . . Ramming . | . . . Kinetic 1469 | 231 777 461 Thermal 77 | . . 77 Explosive . | . . . Electromagnetic . | . . . Impact . | . . . Slashing . | . . . Piercing . | . . . Highest Corruption . | . . . Average Corruption . | . . . Corruption Purged . | . . . Corruption Blocked . | . . . Overload Shots . | . . . Overflow Damage . | . . . Projectiles . | . . . Explosions . | . . . Melee . | . . . Knockbacks . | . . . Impact . | . . . Kinetic . | . . . Secondary . | . . . Self-Inflicted Damage . | . . . Shots . | . . . Rammed . | . . . Targets Rammed . | . . . Kicked . | . . . Crushed . | . . . Highest Temperature 172 | . 2 172 Average Temperature 38 | . 2 42 Received Heat Transfer 609 | . 123 486 Siege Activations . | . . . Robots Corrupted . | . . . Combat Hostiles . | . . . Parts Fried . | . . . Impact Corruptions . | . . . Robots Melted . | . . . Combat Hostiles . | . . . Parts Melted . | . . . Heat Transferred 296 | . . 296 Parts Sabotaged . | . . . Parts Stolen . | . . . Parts Stripped . | . . . Power Chain Reactions . | . . . Missiles Intercepted . | . . . Alert | -11 -10 -10 ------- Run | Scr Mat Min Peak Influence 260 | 20 260 78 Initial 18 | . 13 18 Average 90 | 6 137 32 Maximum Alert Level 1 | . 1 . Low Security (%) 93 | 100 87 100 Level 1 6 | . 12 . Level 2 . | . . . Level 3 . | . . . Level 4 . | . . . Level 5 . | . . . High Security . | . . . Max Security . | . . . Squads Dispatched 2 | . 2 . Investigation 2 | . 2 . Extermination . | . . . Reinforcement . | . . . Assault . | . . . Garrison . | . . . Intercept . | . . . Searches Triggered . | . . . Construction Impeded . | . . . Haulers Reinforced . | . . . Active Scanning Responses . | . . . Cargo Convoy Interrupts . | . . . Stealth | -11 -10 -10 --------- Run | Scr Mat Min Distress Signals 2 | . 1 1 Communications Jammed . | . . . Distress Signals . | . . . Times Spotted 30 | . 15 15 Peak Tracking Total 7 | . 4 7 Tactical Retreats . | . . . Traps | -11 -10 -10 ------- Run | Scr Mat Min Traps Triggered 1 | . 1 . Indirectly . | . . . Trap Hack Attempts . | . . . Triggered . | . . . Disarmed . | . . . Reprogrammed . | . . . Reused . | . . . Traps Extracted . | . . . Installed . | . . . Triggered . | . . . Machines | -11 -10 -10 ---------- Run | Scr Mat Min Machines Disabled . | . . . Max in Single Turn . | . . . Machines Sabotaged . | . . . Garrisons Compromised . | . . . Overloaded Fab Kills . | . . . Hacking | -11 -10 -10 --------- Run | Scr Mat Min Machines Accessed 5 | . 5 . Terminals 4 | . 4 . Fabricators . | . . . Repair Stations . | . . . Recycling Units 1 | . 1 . Scanalyzers . | . . . Garrison Access . | . . . Total Hacks 12 | . 12 . Successful 6 | . 6 . Failed 6 | . 6 . Catastrophic . | . . . Database Lockouts . | . . . Manual 12 | . 12 . Terminals 10 | . 10 . Fabricators . | . . . Repair Stations . | . . . Recycling Units 2 | . 2 . Scanalyzers . | . . . Garrison Access . | . . . Terminal Hacks 2 | . 2 . Robot Analysis 1 | . 1 . Prototype ID Bank 1 | . 1 . Fabricator Hacks . | . . . Repair Station Hacks . | . . . Recycling Unit Hacks 1 | . 1 . Report Inventory 1 | . 1 . Scanalyzer . | . . . Garrison Access Hacks . | . . . Unauthorized Hacks 3 | . 3 . Terminals 2 | . 2 . Botnet 1 | . 1 . Operators 1 | . 1 . Fabricators . | . . . Repair Stations . | . . . Recycling Units 1 | . 1 . Tunnel 1 | . 1 . Scanalyzers . | . . . Garrison Access . | . . . Data Cores Recovered 1 | . 1 . Used . | . . . Hacking Detections 3 | . 3 . Full Trace Events . | . . . Feedback Events . | . . . Feedback Blocked . | . . . Robot Schematics Acquired . | . . . Robots Built . | . . . Authchips . | . . . Time . | . . . Total Robot Build Rating . | . . . Part Schematics Acquired . | . . . Parts Built . | . . . Authchips . | . . . Time . | . . . Total Part Build Rating . | . . . Parts Repaired . | . . . Time . | . . . Parts Recycled . | . . . Recycled Matter . | . . . Retrieved Matter . | . . . Retrieved Components . | . . . Parts Scanalyzed . | . . . Part Schematics Acquired . | . . . Parts Damaged . | . . . Bothacking | -11 -10 -10 ------------ Run | Scr Mat Min Used RIF Installer . | . . . Robots Hacked . | . . . Non-combat . | . . . Combat . | . . . Robot Hacks Applied . | . . . Relay Couplers Released . | . . . Fabnet Peak Effective % . | . . . Robots Rewired . | . . . Allies Hacked . | . . . Hacks Repelled . | . . . Allies | -11 -10 -10 -------- Run | Scr Mat Min Total Allies . | . . . Largest Group . | . . . Highest-Rated Group . | . . . Highest-Rated Ally . | . . . Total Orders . | . . . Ally Attacks . | . . . Total Damage . | . . . Kills . | . . . Allies Corrupted . | . . . Allies Melted . | . . . Intel | -11 -10 -10 ------- Run | Scr Mat Min Robot Analysis Total 1 | . 1 . Derelict Logs Recovered 1 | . . 1 Drone Launches . | . . . Drone Recoveries . | . . . Exploration | -11 -10 -10 ------------- Run | Scr Mat Min Turns Passed 1683 | 130 955 598 Spaces Moved 1013 | 67 633 313 Core 11 | 11 . . Treads 11 | 10 1 . Legs . | . . . Wheels 991 | 46 632 313 Hover . | . . . Flight . | . . . Fastest Speed 50 | 50 95 140 Average Speed 126 | 115 121 140 Slowest Speed 250 | 250 200 200 Overloaded Moves . | . . . Propulsion Burnouts . | . . . Robots Hopped . | . . . Cave-ins Triggered . | . . . Exploration Rate (%) 58 | 4 96 75 Regions Visited 2 Branch Regions 1 Pre-discovered Areas 1 | . 1 . Known Exits Taken . | . . . Unknown Exits Taken 2 | 1 1 . Scrap Searched 1 | . . 1 Spaces Dug . | . . . Terrain Destroyed . | . . . Melee . | . . . Projectile . | . . . AOE . | . . . Terrain Rammed . | . . . Walls Destroyed . | . . . Machines Disabled . | . . . Actions | -11 -10 -10 --------- Run | Scr Mat Min Total 1207 | 92 722 393 Wait 21 | . 16 5 Move 1011 | 66 632 313 Hop . | . . . Pick Up 31 | 8 14 9 Fast Attach 9 | 6 2 1 Attach 8 | . . 8 Detach . | . . . Swap 24 | . 3 21 Drop 6 | . 5 1 Fire 97 | 12 50 35 Melee . | . . . Ram . | . . . Kick . | . . . Crush . | . . . Escape Stasis . | . . . Rewire . | . . . Trap . | . . . Miscellaneous . | . . . Route ------- -11/Scrapyard -10/Materials (discovered 4 exits: [*Mat x3] / [*Min]) -10/Mines (discovered 1 exit: [*Mat]) History --------- Turn | Location | Event 37 | -11/Scrapyard | Discovered new exit (range 16) 131 | -11/Scrapyard | Entered Materials 178 | -10/Materials | Discovered new exit (range 16) 310 | -10/Materials | Build established: Mutant 375 | -10/Materials | Discovered new exit (range 12) 581 | -10/Materials | Discovered new exit (range 6) 720 | -10/Materials | Discovered new exit (range 10) 1086 | -10/Materials | Entered Mines 1134 | -10/Mines | Assembled infested the area 1328 | -10/Mines | Core integrity fell below 50% 1355 | -10/Mines | Lost 3 parts (1n2w) 1410 | -10/Mines | Learned Materials security intel 1434 | -10/Mines | Discovered new exit (range 11) 1681 | -10/Mines | Core integrity fell below 20% 1684 | -10/Mines | Destroyed by G-47 Trooper with Particle Gun Last Messages --------------- 01403_ Acquired 3 matter. 01410_ Acquired derelict log, extracted data. Data stored: Materials security intel. 01434_ EXIT=FOUND 01452_ Acquired Com. Wheel. 01457_ Acquired Lgt. Ion Engine. 01493_ K-01 Serf cleans the Matter Pump. 01525_ K-01 Serf collects debris. 01543_ Acquired Lgt. Assault Rifle. 01554_ Searching scrap... 01554_ Found Seismic Detector. 01554_ Found Aluminum Leg. 01554_ Found Utility Shielding. 01554_ Found 17 Matter. 01554_ Found 22 Matter. 01557_ Acquired Utility Shielding. 01673_ Lgt. Assault Rifle destroyed. 01674_ Lgt. Treads destroyed. 01675_ Lgt. Ion Engine destroyed. 01678_ Wheel destroyed. Map ----- +----------------------------------------------------+ | | | | | | | | | | | | | ???????????????????????????###???????????????????? | | ???????????????????????????###???????????????????? | | ??????????????????????????? ???????????????????? | | ???????????????????????????" "???????????????????? | | ???????????????????????????" "???????????????????? | | ????????????????????####??"" ""??????????????????? | | ????????????# ?????####?? ??????????????????? | | ???????????### ???? """ """ ""??????????????? | | ???????????### ????? """ """ """ ????????????? | | ##?????????## ?????## """ """ """ ????????##### | | ###????????## ????## ##???######## | | ####??????? ????## """ """ """ ##??###### # | | ###?????????? ##?## """ """ """ ##??### | | ##??????????## ##?## """ """ """ ##?### | | ###?????????### #?## ###### | | ###??????????## ### ##### # | | ##??????????## ######## ########### # | | ##??????????## ####### ########### """ | | ##???????????### s###### ###### """ | | ###???????????### s @ g ### ##### """ | | #######????????### ## ### #### # | | #######???????### ## ### ### ### # | | ###????????## ###g### ### | | ## ##????????## ### k ## ### | | #### ##???####?## ?## ###### ######### | | ##### ###??? ##### ??## ##### ########### | | ##### ####?? #### ??##!## ###?????#### # | | ###??? ## ??##%## ### ####????###### | | ##### ##??# " #?##%## #### ###?????#### | | ##### ###### ##?## = ###### ##????????? | | #??## ##### | ###?##### ####### ###????????? | | #??## ## # # ##??##### # ######????????? | | ???## ## # ##?????##=#*""" #####?????????? | | ##### # # ###?????##%%=""" ########??????? | | ##### ###??????##%#%""" #########?????? | | ## # ##???????## # #### ###?????? | | ###### # # # # ##???????## # ### ##?????? | | ##### ##???????## ######### ###????? | | #?#### # ###??####### ########## ####???? | | ?## ### ## ##??####### ##??###### ###???? | | ? ### # ##??## ##?###### ##???? | | ? #### # # ##??## #### ###### ##???? | | ? ######## ##??## #### ##### ##???? | | ???? ##### #####???#### #### ##???? | +----------------------------------------------------+ Best States ------------- Heat Dissipation 39 Energy Generation 14 Energy Capacity 250 Matter Stores 300 Matter Capacity 300 Sight Range 16 Terrain Scan Density 10 Evasion (%) 41 Recoil Reduction 2 Item Schematics ----------------- None Robot Schematics ------------------ None Fabricated ------------ Nothing Alien Tech Used ----------------- None Achievements -------------- None Challenges ------------ None Game ------ Seed CatalystPointyTerrabomb Manual? 0 Play Time 00:18:36 Cumulative 242.8 hours Start 2022.05.02 @ 21:16:28 End 2022.05.02 @ 21:33:23 Sessions 1 Manual Loads 0 Difficulty Rogue Special Mode None Game No. 92 Rogue 92 Adventurer 0 Explorer 0 Win Type - Total 2 Types 1/0/1/0/0/0/0/0/0 Lore% 63 Gallery% 76 Achievement% 59 Wizard Run 0 Options --------- ASCII 0 Keyboard 0 Movement Mouse Keybinds 0 Fullscreen 1 Font 36/TerminusFine Map View 76x50 Tactical HUD 1 Map Filters NONE Filters NONE Steam 1 RUN: 51e4ab2a-e58c-4ac0-9896-ca9069f8cc04